[Event "Titled Tuesday Blitz February 21 Early 2023"]
[White "Desideri, Ricardo Maruchi"]
[Black "Kuchava, Ana"]
[WhiteFideId "2110440"]
[BlackFideId "13605348"]
[WhiteElo "1959"]
[BlackElo "2101"]
[Result "0-1"]
[Round "07"]
[TimeControl "180+2"]
[Date "2023.02.21"]
[WhiteClock "0:00:01"]
[BlackClock "0:00:04"]

1. e4 {[%clk 0:02:55]}  c5 {[%clk 0:02:58]} 2. Nf3 {[%clk 0:02:53]}  d6 {[%clk 0:02:55]} 3. d4 {[%clk 0:02:53]}  cxd4 {[%clk 0:02:56]} 4. Nxd4 {[%clk 0:02:52]}  Nf6 {[%clk 0:02:55]} 5. Nc3 {[%clk 0:02:51]}  Nc6 {[%clk 0:02:36]} 6. Nb3 {[%clk 0:02:47]}  g6 {[%clk 0:02:33]} 7. f3 {[%clk 0:02:38]}  Bg7 {[%clk 0:02:32]} 8. Be3 {[%clk 0:02:37]}  a5 {[%clk 0:02:28]} 9. g4 {[%clk 0:02:32]}  a4 {[%clk 0:02:25]} 10. Nd4 {[%clk 0:02:31]}  Nd7 {[%clk 0:02:08]} 11. a3 {[%clk 0:02:23]}  O-O {[%clk 0:01:36]} 12. Qd2 {[%clk 0:02:19]}  Qb6 {[%clk 0:01:35]} 13. O-O-O {[%clk 0:02:09]}  Nxd4 {[%clk 0:01:22]} 14. Bxd4 {[%clk 0:02:08]}  Bxd4 {[%clk 0:01:22]} 15. Qxd4 {[%clk 0:02:08]}  Qxd4 {[%clk 0:01:23]} 16. Rxd4 {[%clk 0:02:08]}  Ne5 {[%clk 0:01:24]} 17. Be2 {[%clk 0:02:04]}  Bd7 {[%clk 0:01:23]} 18. h4 {[%clk 0:01:55]}  Rfc8 {[%clk 0:01:23]} 19. h5 {[%clk 0:01:53]}  Kg7 {[%clk 0:01:15]} 20. Nd5 {[%clk 0:01:13]}  Nc6 {[%clk 0:00:38]} 21. Rdd1 {[%clk 0:01:06]}  Rd8 {[%clk 0:00:29]} 22. Bb5 {[%clk 0:01:00]}  e6 {[%clk 0:00:24]} 23. Nb6 {[%clk 0:00:52]}  Ra5 {[%clk 0:00:24]} 24. Bxa4 {[%clk 0:00:47]}  Be8 {[%clk 0:00:17]} 25. Bb3 {[%clk 0:00:38]}  Rc5 {[%clk 0:00:10]} 26. Nc4 {[%clk 0:00:35]}  d5 {[%clk 0:00:09]} 27. exd5 {[%clk 0:00:33]}  exd5 {[%clk 0:00:10]} 28. Ne3 {[%clk 0:00:17]}  d4 {[%clk 0:00:11]} 29. Nc4 {[%clk 0:00:16]}  b5 {[%clk 0:00:09]} 30. Nd2 {[%clk 0:00:11]}  Ne5 {[%clk 0:00:09]} 31. Ne4 {[%clk 0:00:11]}  Rc7 {[%clk 0:00:07]} 32. Rhf1 {[%clk 0:00:11]}  Bc6 {[%clk 0:00:05]} 33. Nc5 {[%clk 0:00:08]}  Nxf3 {[%clk 0:00:04]} 34. Bxf7 {[%clk 0:00:05]}  Bd5 {[%clk 0:00:03]} 35. Bxd5 {[%clk 0:00:02]}  Rxd5 {[%clk 0:00:04]} 36. Nd3 {[%clk 0:00:02]}  Ne5 {[%clk 0:00:03]} 37. Nxe5 {[%clk 0:00:01]}  Rxe5 {[%clk 0:00:04]} 38. Rxd4 {[%clk 0:00:01]}  Re2 {[%clk 0:00:05]} 39. Rfd1 {[%clk 0:00:01]}  Rcxc2+ {[%clk 0:00:05]} 40. Kb1 {[%clk 0:00:01]}  Rxb2+ {[%clk 0:00:06]} 41. Ka1 {[%clk 0:00:01]}  Ra2+ {[%clk 0:00:06]} 42. Kb1 {[%clk 0:00:02]}  Reb2+ {[%clk 0:00:07]} 43. Kc1 {[%clk 0:00:02]}  Rg2 {[%clk 0:00:06]} 44. Kb1 {[%clk 0:00:02]}  Rxa3 {[%clk 0:00:05]} 45. Rc1 {[%clk 0:00:01]}  Rb3+ {[%clk 0:00:04]} 0-1


[Site "https://www.chess.com"]

[Event "Titled Tuesday Blitz February 21 Early 2023"]
[White "babbilator"]
[Black "SulfatoFerroso"]
[WhiteElo "2129"]
[BlackElo "1776"]
[Result "1-0"]
[Round "07"]
[TimeControl "180+2"]
[Date "2023.02.21"]
[WhiteClock "0:00:21"]
[BlackClock "0:00:13"]

1. e4 {[%clk 0:03:00]}  c5 {[%clk 0:02:59]} 2. Nc3 {[%clk 0:03:00]}  d6 {[%clk 0:02:55]} 3. Nf3 {[%clk 0:02:59]}  Nc6 {[%clk 0:02:55]} 4. d4 {[%clk 0:03:00]}  cxd4 {[%clk 0:02:54]} 5. Nxd4 {[%clk 0:03:01]}  Nf6 {[%clk 0:02:54]} 6. f3 {[%clk 0:03:01]}  a6 {[%clk 0:02:53]} 7. Be3 {[%clk 0:03:01]}  e6 {[%clk 0:02:53]} 8. Qd2 {[%clk 0:03:01]}  Be7 {[%clk 0:02:52]} 9. O-O-O {[%clk 0:02:59]}  Qc7 {[%clk 0:02:47]} 10. Kb1 {[%clk 0:02:56]}  Bd7 {[%clk 0:02:36]} 11. g4 {[%clk 0:02:52]}  Rc8 {[%clk 0:01:55]} 12. g5 {[%clk 0:02:47]}  Ng8 {[%clk 0:01:53]} 13. h4 {[%clk 0:02:35]}  b5 {[%clk 0:01:49]} 14. Bd3 {[%clk 0:02:20]}  Na5 {[%clk 0:01:46]} 15. h5 {[%clk 0:02:09]}  Nc4 {[%clk 0:01:40]} 16. Bxc4 {[%clk 0:02:08]}  Qxc4 {[%clk 0:01:40]} 17. g6 {[%clk 0:01:57]}  hxg6 {[%clk 0:01:30]} 18. hxg6 {[%clk 0:01:57]}  Rxh1 {[%clk 0:01:17]} 19. gxf7+ {[%clk 0:01:54]}  Kxf7 {[%clk 0:01:16]} 20. Rxh1 {[%clk 0:01:55]}  Bf6 {[%clk 0:01:10]} 21. Nce2 {[%clk 0:01:38]}  Ne7 {[%clk 0:00:35]} 22. b3 {[%clk 0:01:29]}  Qc7 {[%clk 0:00:31]} 23. f4 {[%clk 0:01:19]}  e5 {[%clk 0:00:20]} 24. Nf5 {[%clk 0:01:09]}  Bxf5 {[%clk 0:00:19]} 25. exf5 {[%clk 0:01:09]}  Nxf5 {[%clk 0:00:20]} 26. Bf2 {[%clk 0:00:39]}  exf4 {[%clk 0:00:18]} 27. Qd5+ {[%clk 0:00:31]}  Ke7 {[%clk 0:00:18]} 28. Qxf5 {[%clk 0:00:30]}  Qc5 {[%clk 0:00:16]} 29. Bxc5 {[%clk 0:00:29]}  Rxc5 {[%clk 0:00:16]} 30. Qd3 {[%clk 0:00:22]}  f3 {[%clk 0:00:13]} 31. Qxf3 {[%clk 0:00:21]} 1-0


[Site "https://www.chess.com"]

[Event "Titled Tuesday Blitz February 21 Early 2023"]
[White "parintele_chess"]
[Black "Broca Jimenez, Fernando"]
[BlackFideId "5104742"]
[WhiteElo "2249"]
[BlackElo "2075"]
[Result "0-1"]
[Round "07"]
[TimeControl "180+2"]
[Date "2023.02.21"]
[WhiteClock "0:02:13"]
[BlackClock "0:01:25"]

1. d4 {[%clk 0:02:59]}  Nf6 {[%clk 0:02:56]} 2. Bf4 {[%clk 0:02:59]}  d6 {[%clk 0:02:55]} 3. Nf3 {[%clk 0:02:58]}  g6 {[%clk 0:02:56]} 4. e3 {[%clk 0:02:57]}  Bg7 {[%clk 0:02:57]} 5. Be2 {[%clk 0:02:57]}  O-O {[%clk 0:02:58]} 6. O-O {[%clk 0:02:58]}  Nc6 {[%clk 0:02:55]} 7. c4 {[%clk 0:02:54]}  Nd7 {[%clk 0:02:54]} 8. Nc3 {[%clk 0:02:54]}  e5 {[%clk 0:02:53]} 9. Bg5 {[%clk 0:02:46]}  f6 {[%clk 0:02:39]} 10. Bh4 {[%clk 0:02:40]}  h6 {[%clk 0:02:37]} 11. e4 {[%clk 0:02:24]}  g5 {[%clk 0:01:42]} 12. Bg3 {[%clk 0:02:23]}  Ne7 {[%clk 0:01:41]} 13. dxe5 {[%clk 0:02:21]}  fxe5 {[%clk 0:01:38]} 14. h4 {[%clk 0:02:15]}  Ng6 {[%clk 0:01:24]} 15. hxg5 {[%clk 0:02:13]}  hxg5 {[%clk 0:01:25]} 0-1


[Site "https://www.chess.com"]

[Event "Titled Tuesday Blitz February 21 Early 2023"]
[White "Lazavik, Denis"]
[Black "Dubov, Daniil"]
[WhiteFideId "13515110"]
[BlackFideId "24126055"]
[WhiteElo "2544"]
[BlackElo "2708"]
[Result "1-0"]
[Round "08"]
[TimeControl "180+2"]
[Date "2023.02.21"]
[WhiteClock "0:00:32"]
[BlackClock "0:00:17"]

1. d4 {[%clk 0:02:59]}  Nf6 {[%clk 0:02:58]} 2. c4 {[%clk 0:03:00]}  e6 {[%clk 0:02:58]} 3. Nf3 {[%clk 0:03:01]}  c5 {[%clk 0:02:59]} 4. d5 {[%clk 0:03:00]}  exd5 {[%clk 0:02:59]} 5. cxd5 {[%clk 0:03:01]}  d6 {[%clk 0:03:00]} 6. Nc3 {[%clk 0:03:01]}  g6 {[%clk 0:03:00]} 7. h3 {[%clk 0:03:02]}  Bg7 {[%clk 0:02:59]} 8. e4 {[%clk 0:03:02]}  a6 {[%clk 0:02:55]} 9. a4 {[%clk 0:03:02]}  Nbd7 {[%clk 0:02:54]} 10. Bd3 {[%clk 0:03:01]}  Nh5 {[%clk 0:02:53]} 11. Bg5 {[%clk 0:03:00]}  Bf6 {[%clk 0:02:52]} 12. Be3 {[%clk 0:03:01]}  Bg7 {[%clk 0:02:45]} 13. O-O {[%clk 0:02:54]}  Ne5 {[%clk 0:02:36]} 14. Nxe5 {[%clk 0:02:29]}  Bxe5 {[%clk 0:02:35]} 15. f4 {[%clk 0:02:30]}  Bg7 {[%clk 0:02:36]} 16. g4 {[%clk 0:02:23]}  Nf6 {[%clk 0:02:16]} 17. e5 {[%clk 0:02:20]}  dxe5 {[%clk 0:02:07]} 18. fxe5 {[%clk 0:02:04]}  Nd7 {[%clk 0:02:07]} 19. e6 {[%clk 0:02:04]}  Ne5 {[%clk 0:02:07]} 20. exf7+ {[%clk 0:01:57]}  Nxf7 {[%clk 0:02:06]} 21. Bxc5 {[%clk 0:01:55]}  Ne5 {[%clk 0:01:28]} 22. Qe2 {[%clk 0:01:46]}  Qc7 {[%clk 0:01:16]} 23. Ne4 {[%clk 0:01:40]}  Bd7 {[%clk 0:01:10]} 24. Rac1 {[%clk 0:01:32]}  Bxa4 {[%clk 0:00:44]} 25. Nf6+ {[%clk 0:00:43]}  Bxf6 {[%clk 0:00:32]} 26. Rxf6 {[%clk 0:00:44]}  O-O-O {[%clk 0:00:27]} 27. d6 {[%clk 0:00:41]}  Qa5 {[%clk 0:00:17]} 28. Bb6+ {[%clk 0:00:32]} 1-0


[Site "https://www.chess.com"]

[Event "Titled Tuesday Blitz February 21 Early 2023"]
[White "Ibarra Jerez, Jose Carlos"]
[Black "Daneshvar, Bardiya"]
[WhiteFideId "2226332"]
[BlackFideId "12576468"]
[WhiteElo "2563"]
[BlackElo "2540"]
[Result "0-1"]
[Round "08"]
[TimeControl "180+2"]
[Date "2023.02.21"]
[WhiteClock "0:00:04"]
[BlackClock "0:00:09"]

1. e4 {[%clk 0:03:00]}  c6 {[%clk 0:02:57]} 2. Nf3 {[%clk 0:03:00]}  d5 {[%clk 0:02:58]} 3. d3 {[%clk 0:03:01]}  g6 {[%clk 0:02:57]} 4. Qe2 {[%clk 0:03:00]}  Bg7 {[%clk 0:02:57]} 5. g3 {[%clk 0:03:00]}  e5 {[%clk 0:02:57]} 6. exd5 {[%clk 0:02:56]}  Ne7 {[%clk 0:02:57]} 7. d6 {[%clk 0:02:39]}  Qxd6 {[%clk 0:02:55]} 8. Nbd2 {[%clk 0:02:39]}  Qc7 {[%clk 0:02:52]} 9. Bg2 {[%clk 0:02:35]}  O-O {[%clk 0:02:52]} 10. O-O {[%clk 0:02:35]}  Nd5 {[%clk 0:02:51]} 11. Re1 {[%clk 0:02:33]}  Re8 {[%clk 0:02:44]} 12. a4 {[%clk 0:02:24]}  Nd7 {[%clk 0:02:27]} 13. Nc4 {[%clk 0:02:15]}  N7b6 {[%clk 0:02:14]} 14. a5 {[%clk 0:01:54]}  Nxc4 {[%clk 0:02:14]} 15. dxc4 {[%clk 0:01:55]}  Nf6 {[%clk 0:01:57]} 16. Bd2 {[%clk 0:01:44]}  e4 {[%clk 0:01:50]} 17. Bf4 {[%clk 0:01:43]}  Qd8 {[%clk 0:01:30]} 18. Nd2 {[%clk 0:01:33]}  Nh5 {[%clk 0:00:59]} 19. Be3 {[%clk 0:01:27]}  Bxb2 {[%clk 0:00:56]} 20. Nxe4 {[%clk 0:01:14]}  Bxa1 {[%clk 0:00:53]} 21. Rxa1 {[%clk 0:01:14]}  Bf5 {[%clk 0:00:52]} 22. Rd1 {[%clk 0:01:10]}  Qxa5 {[%clk 0:00:33]} 23. Nd6 {[%clk 0:01:10]}  Nf6 {[%clk 0:00:25]} 24. Nxe8 {[%clk 0:00:46]}  Rxe8 {[%clk 0:00:26]} 25. h3 {[%clk 0:00:46]}  a6 {[%clk 0:00:23]} 26. g4 {[%clk 0:00:39]}  Be4 {[%clk 0:00:20]} 27. Bf1 {[%clk 0:00:22]}  h5 {[%clk 0:00:16]} 28. c3 {[%clk 0:00:17]}  hxg4 {[%clk 0:00:12]} 29. hxg4 {[%clk 0:00:16]}  g5 {[%clk 0:00:09]} 30. f3 {[%clk 0:00:12]}  Bg6 {[%clk 0:00:07]} 31. Qd2 {[%clk 0:00:09]}  Qe5 {[%clk 0:00:06]} 32. Bxg5 {[%clk 0:00:08]}  Nh7 {[%clk 0:00:06]} 33. Bf4 {[%clk 0:00:07]}  Qf6 {[%clk 0:00:06]} 34. Kf2 {[%clk 0:00:05]}  Nf8 {[%clk 0:00:06]} 35. Re1 {[%clk 0:00:04]}  Rxe1 {[%clk 0:00:05]} 36. Kxe1 {[%clk 0:00:05]}  Ne6 {[%clk 0:00:06]} 37. Be3 {[%clk 0:00:05]}  Qxf3 {[%clk 0:00:06]} 38. Be2 {[%clk 0:00:06]}  Qh1+ {[%clk 0:00:06]} 39. Kf2 {[%clk 0:00:05]}  Qh4+ {[%clk 0:00:06]} 40. Kf1 {[%clk 0:00:04]}  Be4 {[%clk 0:00:07]} 41. Qd6 {[%clk 0:00:03]}  Qh1+ {[%clk 0:00:05]} 42. Kf2 {[%clk 0:00:03]}  Qh4+ {[%clk 0:00:05]} 43. Kf1 {[%clk 0:00:03]}  Qh1+ {[%clk 0:00:05]} 44. Kf2 {[%clk 0:00:03]}  Qg2+ {[%clk 0:00:06]} 45. Ke1 {[%clk 0:00:04]}  Bf3 {[%clk 0:00:07]} 46. Qb8+ {[%clk 0:00:03]}  Kg7 {[%clk 0:00:06]} 47. Qe5+ {[%clk 0:00:04]}  Kg8 {[%clk 0:00:07]} 48. Qb8+ {[%clk 0:00:04]}  Kh7 {[%clk 0:00:07]} 49. Bd3+ {[%clk 0:00:04]}  Be4 {[%clk 0:00:08]} 50. Be2 {[%clk 0:00:04]}  b5 {[%clk 0:00:07]} 51. cxb5 {[%clk 0:00:03]}  axb5 {[%clk 0:00:08]} 52. Qe5 {[%clk 0:00:04]}  Bg6 {[%clk 0:00:08]} 53. Kd2 {[%clk 0:00:03]}  c5 {[%clk 0:00:07]} 54. g5 {[%clk 0:00:02]}  b4 {[%clk 0:00:07]} 55. cxb4 {[%clk 0:00:03]}  cxb4 {[%clk 0:00:08]} 56. Bd4 {[%clk 0:00:02]}  Nxd4 {[%clk 0:00:07]} 57. Qxd4 {[%clk 0:00:03]}  Qxg5+ {[%clk 0:00:07]} 58. Ke1 {[%clk 0:00:03]}  Qg3+ {[%clk 0:00:05]} 59. Kd2 {[%clk 0:00:03]}  Qg5+ {[%clk 0:00:06]} 60. Ke1 {[%clk 0:00:03]}  Qc1+ {[%clk 0:00:07]} 61. Kf2 {[%clk 0:00:04]}  Qc3 {[%clk 0:00:07]} 62. Qh4+ {[%clk 0:00:03]}  Kg7 {[%clk 0:00:07]} 63. Bc4 {[%clk 0:00:03]}  b3 {[%clk 0:00:06]} 64. Bxb3 {[%clk 0:00:04]}  Qxb3 {[%clk 0:00:07]} 65. Qd4+ {[%clk 0:00:04]}  f6 {[%clk 0:00:07]} 66. Qd7+ {[%clk 0:00:05]}  Qf7 {[%clk 0:00:08]} 67. Qd4 {[%clk 0:00:05]}  Qe7 {[%clk 0:00:08]} 68. Qd2 {[%clk 0:00:03]}  Qe5 {[%clk 0:00:09]} 69. Qd7+ {[%clk 0:00:03]}  Bf7 {[%clk 0:00:09]} 70. Qg4+ {[%clk 0:00:04]}  Qg5 {[%clk 0:00:10]} 71. Qd7 {[%clk 0:00:04]}  Qf4+ {[%clk 0:00:10]} 72. Kg2 {[%clk 0:00:04]}  Kg6 {[%clk 0:00:10]} 73. Kh1 {[%clk 0:00:04]}  Qh4+ {[%clk 0:00:09]} 74. Kg1 {[%clk 0:00:04]}  Qg3+ {[%clk 0:00:09]} 75. Kh1 {[%clk 0:00:05]}  Qe1+ {[%clk 0:00:09]} 76. Kh2 {[%clk 0:00:05]}  Qe5+ {[%clk 0:00:09]} 77. Kh1 {[%clk 0:00:05]}  Bd5+ {[%clk 0:00:09]} 78. Kg1 {[%clk 0:00:05]}  Qg3+ {[%clk 0:00:08]} 79. Kf1 {[%clk 0:00:06]}  Bc4+ {[%clk 0:00:09]} 80. Qd3+ {[%clk 0:00:04]}  Bxd3# {[%clk 0:00:09]} 0-1


[Site "https://www.chess.com"]

[Event "Titled Tuesday Blitz February 21 Early 2023"]
[White "Bacrot, Etienne"]
[Black "Alekseenko, Kirill"]
[WhiteFideId "605506"]
[BlackFideId "4135539"]
[WhiteElo "2667"]
[BlackElo "2686"]
[Result "1-0"]
[Round "08"]
[TimeControl "180+2"]
[Date "2023.02.21"]
[WhiteClock "0:00:06"]
[BlackClock "0:00:09"]

1. e4 {[%clk 0:03:00]}  e5 {[%clk 0:03:00]} 2. Nf3 {[%clk 0:03:01]}  Nc6 {[%clk 0:03:01]} 3. Bb5 {[%clk 0:03:00]}  a6 {[%clk 0:03:01]} 4. Ba4 {[%clk 0:03:00]}  d6 {[%clk 0:03:02]} 5. O-O {[%clk 0:03:00]}  Bd7 {[%clk 0:03:03]} 6. c3 {[%clk 0:02:59]}  Nge7 {[%clk 0:03:03]} 7. d4 {[%clk 0:02:58]}  Ng6 {[%clk 0:03:04]} 8. Be3 {[%clk 0:02:57]}  Be7 {[%clk 0:03:03]} 9. Nbd2 {[%clk 0:02:58]}  O-O {[%clk 0:03:03]} 10. Re1 {[%clk 0:02:58]}  exd4 {[%clk 0:03:03]} 11. cxd4 {[%clk 0:02:57]}  Nb4 {[%clk 0:03:04]} 12. Bxd7 {[%clk 0:02:50]}  Qxd7 {[%clk 0:03:04]} 13. Nf1 {[%clk 0:02:51]}  d5 {[%clk 0:02:59]} 14. e5 {[%clk 0:02:48]}  f5 {[%clk 0:02:57]} 15. exf6 {[%clk 0:02:43]}  Bxf6 {[%clk 0:02:56]} 16. Qb3 {[%clk 0:02:43]}  Nc6 {[%clk 0:02:42]} 17. Rac1 {[%clk 0:02:43]}  Na5 {[%clk 0:02:23]} 18. Qc3 {[%clk 0:02:41]}  Nc4 {[%clk 0:02:23]} 19. b3 {[%clk 0:02:30]}  Nxe3 {[%clk 0:02:23]} 20. Rxe3 {[%clk 0:02:29]}  c6 {[%clk 0:02:23]} 21. Rce1 {[%clk 0:02:29]}  Rae8 {[%clk 0:02:18]} 22. Ng3 {[%clk 0:02:26]}  Bd8 {[%clk 0:02:04]} 23. Qb4 {[%clk 0:02:03]}  Rxe3 {[%clk 0:02:03]} 24. Rxe3 {[%clk 0:02:02]}  Be7 {[%clk 0:02:03]} 25. Qb6 {[%clk 0:01:57]}  Bd6 {[%clk 0:02:01]} 26. Ne5 {[%clk 0:01:40]}  Bxe5 {[%clk 0:02:00]} 27. dxe5 {[%clk 0:01:40]}  Nf4 {[%clk 0:02:01]} 28. Qd4 {[%clk 0:01:23]}  Ne6 {[%clk 0:01:59]} 29. Qd2 {[%clk 0:01:23]}  d4 {[%clk 0:01:49]} 30. Re1 {[%clk 0:01:22]}  Qd5 {[%clk 0:01:44]} 31. h4 {[%clk 0:01:07]}  c5 {[%clk 0:01:44]} 32. Ne4 {[%clk 0:01:07]}  h6 {[%clk 0:01:40]} 33. Nd6 {[%clk 0:01:01]}  b5 {[%clk 0:01:34]} 34. Qd3 {[%clk 0:00:48]}  Qxg2+ {[%clk 0:01:25]} 35. Kxg2 {[%clk 0:00:47]}  Nf4+ {[%clk 0:01:25]} 36. Kg3 {[%clk 0:00:45]}  Nxd3 {[%clk 0:01:26]} 37. Re4 {[%clk 0:00:34]}  Nxf2 {[%clk 0:00:54]} 38. Re2 {[%clk 0:00:33]}  Nd3 {[%clk 0:00:54]} 39. e6 {[%clk 0:00:33]}  Nf4 {[%clk 0:00:55]} 40. Re5 {[%clk 0:00:26]}  Nxe6 {[%clk 0:00:32]} 41. Rxe6 {[%clk 0:00:27]}  d3 {[%clk 0:00:33]} 42. Re3 {[%clk 0:00:20]}  Rd8 {[%clk 0:00:32]} 43. Rxd3 {[%clk 0:00:20]}  c4 {[%clk 0:00:33]} 44. bxc4 {[%clk 0:00:20]}  bxc4 {[%clk 0:00:34]} 45. Rd4 {[%clk 0:00:21]}  c3 {[%clk 0:00:31]} 46. Nf5 {[%clk 0:00:21]}  Rxd4 {[%clk 0:00:25]} 47. Nxd4 {[%clk 0:00:21]}  Kf7 {[%clk 0:00:26]} 48. Kf4 {[%clk 0:00:21]}  Kf6 {[%clk 0:00:25]} 49. h5 {[%clk 0:00:16]}  g6 {[%clk 0:00:24]} 50. hxg6 {[%clk 0:00:16]}  Kxg6 {[%clk 0:00:25]} 51. Ke4 {[%clk 0:00:16]}  h5 {[%clk 0:00:24]} 52. Kd3 {[%clk 0:00:17]}  h4 {[%clk 0:00:22]} 53. Nf3 {[%clk 0:00:07]}  h3 {[%clk 0:00:20]} 54. Kxc3 {[%clk 0:00:07]}  Kf5 {[%clk 0:00:21]} 55. Kd3 {[%clk 0:00:07]}  Kf4 {[%clk 0:00:21]} 56. Ke2 {[%clk 0:00:07]}  Kg3 {[%clk 0:00:18]} 57. Ke3 {[%clk 0:00:07]}  a5 {[%clk 0:00:13]} 58. a4 {[%clk 0:00:04]}  Kg4 {[%clk 0:00:10]} 59. Nh2+ {[%clk 0:00:02]}  Kg3 {[%clk 0:00:11]} 60. Nf1+ {[%clk 0:00:02]}  Kg2 {[%clk 0:00:11]} 61. Ke2 {[%clk 0:00:03]}  h2 {[%clk 0:00:09]} 62. Nxh2 {[%clk 0:00:03]}  Kxh2 {[%clk 0:00:09]} 63. Kd3 {[%clk 0:00:03]}  Kg3 {[%clk 0:00:09]} 64. Kc4 {[%clk 0:00:04]}  Kf4 {[%clk 0:00:10]} 65. Kb5 {[%clk 0:00:04]}  Ke5 {[%clk 0:00:10]} 66. Kxa5 {[%clk 0:00:05]}  Kd6 {[%clk 0:00:09]} 67. Kb6 {[%clk 0:00:06]} 1-0


[Site "https://www.chess.com"]

[Event "Titled Tuesday Blitz February 21 Early 2023"]
[White "Kukhmazov, Arsen"]
[Black "Svane, Rasmus"]
[WhiteFideId "24108260"]
[BlackFideId "4657101"]
[WhiteElo "2512"]
[BlackElo "2623"]
[Result "1-0"]
[Round "08"]
[TimeControl "180+2"]
[Date "2023.02.21"]
[WhiteClock "0:00:08"]
[BlackClock "0:00:23"]

1. d4 {[%clk 0:03:00]}  Nf6 {[%clk 0:02:59]} 2. Nf3 {[%clk 0:02:58]}  d5 {[%clk 0:02:59]} 3. c4 {[%clk 0:02:58]}  e6 {[%clk 0:03:00]} 4. e3 {[%clk 0:02:57]}  Be7 {[%clk 0:02:57]} 5. b3 {[%clk 0:02:58]}  O-O {[%clk 0:02:58]} 6. Bd3 {[%clk 0:02:58]}  b6 {[%clk 0:02:55]} 7. O-O {[%clk 0:02:59]}  Bb7 {[%clk 0:02:55]} 8. Bb2 {[%clk 0:02:59]}  Nbd7 {[%clk 0:02:55]} 9. Nc3 {[%clk 0:02:59]}  c5 {[%clk 0:02:53]} 10. Qe2 {[%clk 0:03:00]}  dxc4 {[%clk 0:02:53]} 11. bxc4 {[%clk 0:03:00]}  Qc7 {[%clk 0:02:41]} 12. Rfd1 {[%clk 0:02:54]}  cxd4 {[%clk 0:02:41]} 13. exd4 {[%clk 0:02:54]}  Rfe8 {[%clk 0:02:41]} 14. h3 {[%clk 0:02:53]}  Rac8 {[%clk 0:02:41]} 15. Rac1 {[%clk 0:02:52]}  Bf8 {[%clk 0:02:36]} 16. Qe3 {[%clk 0:02:46]}  Qb8 {[%clk 0:02:34]} 17. Ne4 {[%clk 0:02:25]}  Nxe4 {[%clk 0:02:30]} 18. Bxe4 {[%clk 0:02:26]}  Bxe4 {[%clk 0:02:31]} 19. Qxe4 {[%clk 0:02:27]}  b5 {[%clk 0:02:17]} 20. c5 {[%clk 0:02:14]}  Nf6 {[%clk 0:02:16]} 21. Qe2 {[%clk 0:02:14]}  Nd5 {[%clk 0:02:13]} 22. Ne5 {[%clk 0:02:13]}  a6 {[%clk 0:02:05]} 23. Rb1 {[%clk 0:02:12]}  Qc7 {[%clk 0:02:04]} 24. Qf3 {[%clk 0:01:53]}  g6 {[%clk 0:02:01]} 25. Bc1 {[%clk 0:01:40]}  Bg7 {[%clk 0:01:59]} 26. Re1 {[%clk 0:01:41]}  Rf8 {[%clk 0:01:46]} 27. h4 {[%clk 0:01:38]}  Ne7 {[%clk 0:01:34]} 28. Bf4 {[%clk 0:01:26]}  Qd8 {[%clk 0:01:31]} 29. Rbd1 {[%clk 0:01:24]}  Qd5 {[%clk 0:01:30]} 30. Qb3 {[%clk 0:01:09]}  Rfd8 {[%clk 0:01:24]} 31. Nf3 {[%clk 0:00:37]}  Nc6 {[%clk 0:01:21]} 32. Bd6 {[%clk 0:00:36]}  Qxb3 {[%clk 0:01:13]} 33. axb3 {[%clk 0:00:37]}  Bf8 {[%clk 0:01:14]} 34. d5 {[%clk 0:00:29]}  exd5 {[%clk 0:01:03]} 35. Rxd5 {[%clk 0:00:30]}  Nb4 {[%clk 0:01:03]} 36. Rd2 {[%clk 0:00:30]}  f6 {[%clk 0:00:55]} 37. g4 {[%clk 0:00:18]}  Re8 {[%clk 0:00:46]} 38. Red1 {[%clk 0:00:18]}  Nc6 {[%clk 0:00:36]} 39. g5 {[%clk 0:00:17]}  f5 {[%clk 0:00:34]} 40. Bxf8 {[%clk 0:00:18]}  Kxf8 {[%clk 0:00:35]} 41. Rd6 {[%clk 0:00:18]}  Red8 {[%clk 0:00:31]} 42. Rf6+ {[%clk 0:00:16]}  Kg7 {[%clk 0:00:30]} 43. Rxd8 {[%clk 0:00:14]}  Rxd8 {[%clk 0:00:31]} 44. Rxc6 {[%clk 0:00:14]}  Rd3 {[%clk 0:00:23]} 45. Kg2 {[%clk 0:00:14]}  a5 {[%clk 0:00:22]} 46. Rc7+ {[%clk 0:00:14]}  Kg8 {[%clk 0:00:21]} 47. c6 {[%clk 0:00:13]}  Rc3 {[%clk 0:00:19]} 48. Ne5 {[%clk 0:00:13]}  Rc5 {[%clk 0:00:18]} 49. Nd7 {[%clk 0:00:07]}  Rc3 {[%clk 0:00:17]} 50. Nf6+ {[%clk 0:00:07]}  Kf8 {[%clk 0:00:18]} 51. Rc8+ {[%clk 0:00:05]}  Ke7 {[%clk 0:00:18]} 52. Nd5+ {[%clk 0:00:05]}  Kd6 {[%clk 0:00:18]} 53. Nxc3 {[%clk 0:00:05]}  a4 {[%clk 0:00:19]} 54. Nxb5+ {[%clk 0:00:06]}  Kc5 {[%clk 0:00:19]} 55. bxa4 {[%clk 0:00:06]}  Kb4 {[%clk 0:00:20]} 56. c7 {[%clk 0:00:07]}  f4 {[%clk 0:00:21]} 57. Rb8 {[%clk 0:00:07]}  f3+ {[%clk 0:00:22]} 58. Kxf3 {[%clk 0:00:07]}  Ka5 {[%clk 0:00:23]} 59. c8=Q {[%clk 0:00:08]}  Kb4 {[%clk 0:00:23]} 1-0


[Site "https://www.chess.com"]